fUSD/lending_fUSD_20260213
["ID","MTS","AMOUNT","RATE_DAILY","PERIOD"]
[405303225,1770971444158,-615.27,0.00013698,2]
[405303226,1770971444167,-615.27,0.00013698,2]
[405303227,1770971444177,-615.27,0.00013698,2]
[405303228,1770971444186,-615.27,0.00013698,2]
[405303229,1770971444195,-615.27,0.00013698,2]
[405303230,1770971444204,-615.27,0.00013698,2]
[405303231,1770971444214,-615.27,0.00013698,2]
[405303232,1770971444224,-615.27,0.00013698,2]
[405303233,1770971444233,-866.73,0.00013698,2]
[405303234,1770971444243,-866.73,0.00013698,2]
[405303235,1770971444252,-866.73,0.00013698,2]
[405303236,1770971444262,-866.73,0.00013698,2]
[405303237,1770971444272,-866.73,0.00013698,2]
[405303238,1770971444282,-866.73,0.00013698,2]
[405303239,1770971444294,-866.73,0.00013698,2]
[405303240,1770971444305,-866.73,0.00013698,2]
[405303241,1770971444314,-866.73,0.00013698,2]
[405303242,1770971444324,-866.73,0.00013698,2]
[405303243,1770971444335,-866.73,0.00013698,2]
[405303244,1770971444344,-866.73,0.00013698,2]
[405303245,1770971444353,-866.73,0.00013698,2]
[405303246,1770971444364,-866.73,0.00013698,2]
[405303247,1770971444374,-866.73,0.00013698,2]
[405303248,1770971444383,-866.73,0.00013698,2]
[405303249,1770971444392,-500.0,0.00013698,2]
[405303250,1770971444402,-500.0,0.00013698,2]
[405303251,1770971444412,-500.0,0.00013698,2]
[405303252,1770971444421,-500.0,0.00013698,2]
[405303253,1770971444431,-500.0,0.00013698,2]
[405303254,1770971444440,-500.0,0.00013698,2]
[405303255,1770971444450,-500.0,0.00013698,2]
[405303256,1770971444459,-500.0,0.00013698,2]
[405303257,1770971444469,-500.0,0.00013698,2]
[405303258,1770971444479,-500.0,0.00013698,2]
[405303259,1770971444488,-500.0,0.00013698,2]
[405303260,1770971444497,-500.0,0.00013698,2]
[405303261,1770971444506,-500.0,0.00013698,2]
[405303262,1770971444516,-500.0,0.00013698,2]
[405303263,1770971444526,-500.0,0.00013698,2]
[405303264,1770971444536,-500.0,0.00013698,2]
[405303265,1770971444545,-500.0,0.00013698,2]
[405303266,1770971444555,-500.0,0.00013698,2]
[405303267,1770971444565,-500.0,0.00013698,3]
[405303268,1770971444575,-500.0,0.00013698,4]
[405303269,1770971444584,-500.0,0.00013698,5]
[405303270,1770971444593,-500.0,0.00013698,6]
[405303271,1770971444603,-500.0,0.00013698,7]
[405303272,1770971444612,-500.0,0.00013698,8]
[405303273,1770971444622,-500.0,0.00013698,9]
[405303274,1770971444631,-177.3744834,0.00013698,10]
[405303275,1770971444641,-500.0,0.00013698,2]
[405303276,1770971444651,-616.8,0.00013698,2]
[405303277,1770971444660,-500.0,0.00013698,2]
[405303278,1770971444671,-500.0,0.00013698,2]
[405303279,1770971444681,-616.8,0.00013698,2]
[405303280,1770971444690,-616.8,0.00013698,2]
[405303281,1770971444700,-616.8,0.00013698,2]
[405303282,1770971444710,-500.0,0.00013698,2]
[405303283,1770971444719,-616.8,0.00013698,2]
[405303284,1770971444729,-500.0,0.00013698,2]
[405303285,1770971444738,-616.8,0.00013698,2]
[405303286,1770971444748,-500.0,0.00013698,2]
[405303287,1770971444757,-616.8,0.00013698,2]
[405303288,1770971444766,-500.0,0.00013698,2]
[405303289,1770971444776,-616.8,0.00013698,2]
[405303290,1770971444785,-500.0,0.00013698,2]
[405303291,1770971444795,-616.8,0.00013698,2]
[405303292,1770971444804,-500.0,0.00013698,2]
[405303293,1770971444814,-616.8,0.00013698,2]
[405303294,1770971444823,-500.0,0.00013698,2]
[405303295,1770971444833,-616.8,0.00013698,2]
[405303297,1770971444843,-500.0,0.00013698,2]
[405303299,1770971444852,-500.0,0.00013698,2]
[405303300,1770971444861,-616.8,0.00013698,2]
[405303303,1770971444871,-616.8,0.00013698,2]
[405303305,1770971444881,-500.0,0.00013698,2]
[405303307,1770971444891,-616.8,0.00013698,2]
[405303309,1770971444900,-500.0,0.00013698,2]
[405303311,1770971444910,-616.8,0.00013698,2]
[405303313,1770971444919,-500.0,0.00013698,2]
[405303315,1770971444929,-616.8,0.00013698,2]
[405303317,1770971444938,-500.0,0.00013698,2]
[405303319,1770971444947,-616.8,0.00013698,2]
[405303321,1770971444956,-500.0,0.00013698,2]
[405303323,1770971444970,-500.0,0.00013698,2]
[405303325,1770971444979,-418.28571539,0.00013698,2]
[405303327,1770971444988,-500.0,0.00013698,2]
[405303329,1770971445001,-500.0,0.00013698,2]
[405303331,1770971445011,-509.4313423,0.00013698,2]
[405303333,1770971445020,-500.0,0.00013698,2]
[405303335,1770971445030,-500.0,0.00013698,2]
[405303337,1770971445039,-500.0,0.00013698,2]
[405303339,1770971445048,-500.0,0.00013698,2]
[405303341,1770971445058,-500.0,0.00013698,2]
[405303343,1770971445067,-500.0,0.00013698,2]
[405303345,1770971445076,-500.0,0.00013698,2]
[405303347,1770971445085,-500.0,0.00013698,2]
[405303349,1770971445095,-200.0,0.00013699,2]
[405303351,1770971445104,-5193.21,0.00013699,2]
[405303352,1770971445113,-315.64,0.00013699,2]
[405303353,1770971445123,-263.03,0.00013699,2]
[405303354,1770971445132,-219.2,0.00013699,2]
[405303355,1770971445141,-182.66,0.00013699,2]
[405303356,1770971445151,-152.22,0.00013699,2]
[405303357,1770971445160,-761.12,0.00013699,2]
[405303358,1770971445169,-150.0,0.00013699,2]
[405303359,1770971445179,-203.44119,0.00013754,2]
[405303360,1770971445188,-616.8,0.00013784,2]
[405303361,1770971445198,-7317.618459,0.00013785,7]
[405303362,1770971445208,-6830.362898,0.00013785,7]
[405303363,1770971445217,-210.64,0.00013892,2]
[405303364,1770971445227,-1500.0,0.00014,2]
[405303365,1770971445236,-151.72862617,0.00014,2]
[405303366,1770971445245,-45698.0920966,0.00014,2]
[405303367,1770971445255,-72332.52053433,0.00014218,2]
[405303368,1770971445264,-1001.53079638,0.00014221,2]
[405303369,1770971445273,-744.95097778,0.00014221,2]
[405303370,1770971445286,-228.27051733,0.00014221,2]
[405303371,1770971445295,-501.77969329,0.00014221,2]
[405303372,1770971445306,-1000.0,0.00014221,2]
[405303373,1770971445315,-623.71743587,0.00014221,2]
[405303374,1770971445326,-1000.0,0.00014221,2]
[405303375,1770971445336,-1000.0,0.00014221,2]
[405303376,1770971445345,-1000.0,0.00014221,2]
[405303377,1770971445356,-1000.0,0.00014221,2]
[405303378,1770971445366,-159.57503303,0.00014221,2]
[405303379,1770971445376,-1000.0,0.00014221,2]
[405303380,1770971445386,-876.63664137,0.00014221,2]
[405303381,1770971445395,-1000.0,0.00014221,2]
[405303382,1770971445405,-646.0,0.00014319,2]
[405303383,1770971445415,-646.0,0.00014329,2]
[405303384,1770971445424,-646.0,0.00014343,2]
[405303385,1770971445434,-10344.72501178,0.0001439,2]
[405303386,1770971445443,-646.0,0.00014393,2]
[405303387,1770971445452,-646.0,0.00014475,2]
[405303388,1770971445462,-1301.116,0.00014494,2]
[405303389,1770971445471,-150.223,0.00014494,2]
[405303390,1770971445480,-1216.86,0.00014494,2]
[405303391,1770971445490,-925.399,0.00014494,2]
[405303392,1770971445499,-1350.099,0.00014494,2]
[405303393,1770971445508,-162.602,0.00014494,2]
[405303394,1770971445517,-646.0,0.00014507,2]
[405303395,1770971445527,-646.0,0.00014561,2]
[405303396,1770971445537,-151.0,0.00014634,2]
[405303397,1770971445547,-646.0,0.00014678,2]
[405303398,1770971445557,-646.0,0.00014689,2]
[405303399,1770971445567,-646.0,0.00014709,2]
[405303400,1770971445578,-13470.0,0.00014725,2]
[405303401,1770971445588,-4427.0,0.00014725,2]
[405303402,1770971445598,-1500.0,0.00014768,2]
[405303403,1770971445607,-1500.0,0.00014768,2]
[405303404,1770971445617,-620.59812274,0.00014768,2]
[405303405,1770971445629,-1500.0,0.00014768,2]
[405303406,1770971445641,-1500.0,0.00014768,2]
[405303407,1770971445654,-884.25817303,0.00014768,2]
[405303408,1770971445667,-1500.0,0.00014768,2]
[405303409,1770971445681,-210.62842784,0.00014775,2]
[405303410,1770971445692,-646.0,0.0001486,2]
[405303411,1770971445702,-175.99354659,0.000149,2]
[405303412,1770971445715,-175.99354657,0.000149,2]
[405303413,1770971445727,-175.99354657,0.000149,2]
[405303414,1770971445739,-45698.0920966,0.000149,2]
[405303415,1770971445751,-2054.57446277,0.00015,2]
[405303416,1770971445763,-7998.56048941,0.00015,2]
[405303417,1770971445776,-418.64808275,0.00015,2]
[405303418,1770971445788,-646.0,0.00015146,2]
[405303419,1770971445800,-500.0,0.00015164,2]
[405303420,1770971445812,-500.0,0.00015164,2]
[405303422,1770971445824,-253.0,0.00015164,2]
[405303423,1770971445835,-646.0,0.00015166,2]
[405303424,1770971445845,-1000.0,0.00015185,7]
[405303425,1770971445855,-321.85,0.00015189,2]
[405303426,1770971445866,-646.0,0.00015208,2]
[405303427,1770971445878,-646.0,0.00015288,2]
[405303428,1770971445889,-1517.64,0.000153,2]
[405303429,1770971445900,-591.31,0.00015315,2]
[405303430,1770971445912,-1197.3,0.00015315,2]
[405303431,1770971445923,-1410.82,0.00015315,2]
[405303432,1770971445935,-615.27,0.00015315,2]
[405303433,1770971445947,-500.0,0.00015315,2]
[405303435,1770971445959,-2000.0,0.00015316,2]
[405303437,1770971445971,-2000.0,0.00015316,2]
[405303439,1770971445983,-2000.0,0.00015316,2]
[405303441,1770971445994,-2000.0,0.00015316,2]
[405303444,1770971446008,-2003.71008588,0.00015316,2]
[405303446,1770971446019,-646.0,0.00015329,2]
[405303448,1770971446031,-646.0,0.00015371,2]
[405303450,1770971446044,-509.37205918,0.000154,2]
[405303453,1770971446055,-722.32,0.00015418,2]
[405303455,1770971446067,-1137.19,0.00015418,2]
[405303457,1770971446078,-981.7,0.00015418,2]
[405303459,1770971446090,-500.0,0.00015418,2]
[405303462,1770971446102,-500.0,0.00015418,2]
[405303464,1770971446114,-691.13,0.00015418,2]
[405303466,1770971446126,-500.0,0.00015418,2]
[405303469,1770971446138,-529.45,0.00015418,2]
[405303471,1770971446149,-1438.79,0.00015418,2]
[405303473,1770971446160,-500.0,0.00015418,2]
[405303475,1770971446171,-581.0,0.00015418,2]
[405303477,1770971446183,-866.73,0.00015418,2]
[405303479,1770971446193,-500.0,0.00015418,2]
[405303482,1770971446204,-72332.52053433,0.00015454,2]
[405303484,1770971446214,-646.0,0.00015455,2]
[405303486,1770971446224,-646.0,0.00015499,2]
[405303488,1770971446235,-646.0,0.00015513,2]
[405303490,1770971446248,-646.0,0.00015554,2]
[405303493,1770971446261,-646.0,0.00015587,2]
[405303495,1770971446271,-45688.9750155,0.0001561,2]
[405303497,1770971446282,-646.0,0.00015631,2]
[405303499,1770971446294,-646.0,0.00015689,2]
[405303501,1770971446304,-646.0,0.00015708,2]
[405303503,1770971446314,-2244.65684869,0.00015807,2]
[405303505,1770971446327,-341.74,0.00015823,2]
[405303507,1770971446338,-2500.0,0.00015864,2]
[405303510,1770971446350,-2500.0,0.00015864,2]
[405303512,1770971446363,-2500.0,0.00015864,2]
[405303514,1770971446373,-464.93718194,0.00015864,2]
[405303516,1770971446383,-1011.76198068,0.00015945,2]
[405303518,1770971446392,-500.0,0.00015986,2]
[405303519,1770971446403,-252.0,0.00015986,2]
[405303521,1770971446414,-262.74959238,0.00016,2]
[405303523,1770971446425,-9999.99,0.00016116,2]
[405303526,1770971446436,-616.8,0.00016172,2]
[405303528,1770971446446,-502.22718587,0.00016173,2]
[405303529,1770971446457,-500.0,0.00016173,2]
[405303530,1770971446468,-500.0,0.00016173,2]
[405303531,1770971446478,-501.86536618,0.00016173,2]
[405303532,1770971446489,-504.64635869,0.00016173,2]
[405303533,1770971446500,-162.32234067,0.00016173,2]
[405303534,1770971446511,-500.0,0.00016173,2]
[405303535,1770971446522,-500.0,0.00016173,2]
[405303536,1770971446533,-500.0,0.00016173,2]
[405303537,1770971446544,-161.87999036,0.00016173,2]
[405303538,1770971446555,-163.79829238,0.00016173,2]
[405303539,1770971446566,-500.0,0.00016173,2]
[405303540,1770971446578,-500.0,0.00016173,2]
[405303541,1770971446589,-500.0,0.00016173,2]
[405303542,1770971446599,-500.0,0.00016173,2]
[405303543,1770971446610,-500.0,0.00016173,2]
[405303544,1770971446621,-502.68727614,0.00016173,2]
[405303545,1770971446632,-161.79452936,0.00016173,2]
[405303546,1770971446643,-502.51804704,0.00016173,2]
[405303547,1770971446654,-502.15975128,0.00016173,2]
[405303548,1770971446664,-501.45759007,0.00016173,2]
[405303549,1770971446675,-500.0,0.00016173,2]
[405303550,1770971446687,-500.0,0.00016173,2]
[405303551,1770971446698,-500.0,0.00016173,2]
[405303552,1770971446709,-500.0,0.00016173,2]
[405303553,1770971446720,-500.0,0.00016173,2]
[405303554,1770971446730,-500.0,0.00016173,2]
[405303555,1770971446742,-500.0,0.00016173,2]
[405303556,1770971446753,-500.0,0.00016173,2]
[405303557,1770971446763,-500.0,0.00016173,2]
[405303558,1770971446775,-560.82560614,0.00016173,2]
[405303559,1770971446786,-500.0,0.00016173,2]
[405303560,1770971446797,-500.0,0.00016173,2]
[405303561,1770971446809,-500.0,0.00016173,2]
[405303562,1770971446820,-500.71447889,0.00016173,2]
[405303563,1770971446833,-567.62074081,0.00016173,2]
[405303564,1770971446844,-160.21755822,0.00016173,2]
[405303565,1770971446855,-502.19144645,0.00016173,2]
[405303566,1770971446866,-160.36449504,0.00016173,2]
[405303567,1770971446879,-160.37994263,0.00016173,2]
[405303568,1770971446890,-523.38790063,0.00016173,2]
[405303569,1770971446901,-500.9662317,0.00016173,2]
[405303570,1770971446911,-500.0,0.00016173,2]
[405303571,1770971446923,-500.0,0.00016173,2]
[405303572,1770971446934,-160.94815484,0.00016173,2]
[405303573,1770971446944,-501.3619325,0.00016173,2]
[405303574,1770971446955,-185.89561959,0.00016173,2]
[405303575,1770971446966,-500.2976467,0.00016173,2]
[405303576,1770971446978,-500.0,0.00016173,2]
[405303577,1770971446989,-514.01890728,0.00016173,2]
[405303578,1770971447000,-285.08602692,0.00016173,2]
[405303579,1770971447011,-500.0,0.00016173,2]
[405303580,1770971447022,-515.01775442,0.00016173,2]
[405303581,1770971447032,-170.11819774,0.00016173,2]
[405303582,1770971447043,-441.54821717,0.00016173,2]
[405303583,1770971447054,-596.02960806,0.00016173,2]
[405303584,1770971447066,-501.43225284,0.00016173,2]
[405303585,1770971447077,-500.0,0.00016173,2]
[405303586,1770971447087,-500.0,0.00016173,2]
[405303587,1770971447098,-500.0,0.00016173,2]
[405303588,1770971447108,-500.0,0.00016173,2]
[405303589,1770971447118,-559.21826775,0.00016173,2]
[405303590,1770971447129,-501.58203416,0.00016173,2]
[405303591,1770971447140,-1727.0,0.00016197,2]
[405303592,1770971447151,-5000.00269632,0.000162,5]
[405303593,1770971447162,-200.0,0.0001634,2]
[405303594,1770971447172,-160.10510946,0.00016409,2]
[405303595,1770971447183,-2694.92260426,0.00016412,2]
[405303596,1770971447194,-3000.0,0.00016412,2]
[405303597,1770971447204,-266.54635509,0.00016412,2]
[405303598,1770971447216,-151.02975848,0.00016438,2]
[405303599,1770971447227,-210.64,0.00016535,2]
[405303600,1770971447237,-361.33092873,0.000166,2]
[405303601,1770971447247,-72332.52053433,0.00016691,2]
[405303602,1770971447258,-460.18108091,0.00016721,2]
[405303603,1770971447269,-1000.0,0.00016721,2]
[405303604,1770971447280,-1000.0,0.00016721,2]
[405303605,1770971447294,-1000.0,0.00016721,2]
[405303606,1770971447306,-1095.58692037,0.00016721,2]
[405303607,1770971447318,-1000.0,0.00016721,2]
[405303608,1770971447330,-1000.0,0.00016721,2]
[405303609,1770971447341,-516.39838794,0.00016721,2]
[405303610,1770971447352,-1000.0,0.00016721,2]
[405303611,1770971447363,-1002.86775924,0.00016721,2]
[405303612,1770971447374,-1000.0,0.00016721,2]
[405303613,1770971447385,-1002.46426974,0.00016721,2]
[405303614,1770971447395,-1000.0,0.00016721,2]
[405303615,1770971447405,-1000.0,0.00016721,2]
[405303616,1770971447416,-1005.49608217,0.00016721,2]
[405303617,1770971447427,-1000.0,0.00016721,2]
[405303618,1770971447437,-1000.0,0.00016721,2]
[405303619,1770971447448,-1000.0,0.00016721,2]
[405303620,1770971447459,-651.60051968,0.00016721,2]
[405303621,1770971447469,-502.01410517,0.00016721,2]
[405303622,1770971447480,-1000.0,0.00016721,2]
[405303623,1770971447490,-1000.0,0.00016721,2]
[405303624,1770971447501,-1000.0,0.00016721,2]
[405303625,1770971447511,-1000.0,0.00016721,2]
[405303626,1770971447523,-1000.0,0.00016721,2]
[405303627,1770971447534,-895.51801597,0.00016721,2]
[405303628,1770971447544,-1000.0,0.00016721,2]
[405303629,1770971447556,-1000.0,0.00016721,2]
[405303630,1770971447566,-1000.0,0.00016721,2]
[405303631,1770971447577,-1000.0,0.00016721,2]
[405303632,1770971447589,-501.0,0.00016808,2]
[405303633,1770971447600,-3500.0,0.0001696,2]
[405303634,1770971447611,-200.18551342,0.00016983,2]
[405303635,1770971447623,-874.96955465,0.0001699,2]
[405303636,1770971447633,-151.0,0.00016997,2]
[405303637,1770971447645,-300.0,0.00016999,2]
[405303638,1770971447656,-990345.30744029,0.00017,2]
[405303639,1770971447667,-151.0,0.00017,2]
[405303640,1770971447678,-151.0,0.00017,2]
[405303641,1770971447688,-1516.46648451,0.00017268,2]
[405303642,1770971447700,-395.07222913,0.00017268,2]
[405303643,1770971447710,-1511.15532906,0.00017268,2]
[405303644,1770971447721,-504.47861685,0.00017268,2]
[405303645,1770971447731,-1492.57355052,0.00017268,2]
[405303646,1770971447743,-1441.31512471,0.00017268,2]
[405303647,1770971447754,-1385.22876049,0.00017268,2]
[405303648,1770971447765,-501.69367829,0.00017268,2]
[405303649,1770971447776,-594.1463812,0.00017268,2]
[405303650,1770971447787,-1500.0,0.00017268,2]
[405303651,1770971447799,-1000.0,0.00017268,2]
[405303652,1770971447810,-1500.0,0.00017268,2]
[405303653,1770971447822,-1500.0,0.00017268,2]
[405303654,1770971447832,-1500.0,0.00017268,2]
[405303655,1770971447841,-1030.73212688,0.00017268,2]
[405303656,1770971447851,-1500.0,0.00017268,2]
[405303657,1770971448097,-501.25973348,0.00017268,2]
[405303658,1770971448115,-1189.48508618,0.00017268,2]
[405303659,1770971448133,-1500.0,0.00017268,2]
[405303660,1770971448142,-800.97860377,0.00017268,2]
[405303661,1770971448152,-501.93985901,0.00017268,2]
[405303662,1770971448161,-1274.0,0.00017494,2]
[405303663,1770971448170,-150.0,0.00017494,2]
[405303664,1770971448180,-1208.0,0.00017494,2]
[405303665,1770971448190,-918.0,0.00017494,2]
[405303666,1770971448199,-1337.0,0.00017494,2]
[405303667,1770971448208,-947.61473378,0.00017508,2]
[405303668,1770971448218,-1829.404612,0.00017521,7]
[405303669,1770971448227,-783.90308371,0.000177,2]
[405303670,1770971448236,-481.89542729,0.00017743,2]
[405303671,1770971448246,-481.89542728,0.00017743,2]
[405303672,1770971448256,-500.0,0.00017808,2]
[405303673,1770971448266,-800.0,0.00017808,2]
[405303674,1770971448276,-616.8,0.00017816,2]
[405303675,1770971448288,-616.8,0.00017816,2]
[405303676,1770971448297,-616.8,0.00017816,2]
[405303677,1770971448308,-616.8,0.00017816,2]
[405303678,1770971448317,-616.90997361,0.00017816,2]
[405303679,1770971448328,-2003.05497251,0.00017816,2]
[405303680,1770971448338,-2000.0,0.00017816,2]
[405303681,1770971448347,-2000.0,0.00017816,2]
[405303682,1770971448357,-2000.0,0.00017816,2]
[405303683,1770971448367,-2008.47777759,0.00017816,2]
[405303684,1770971448377,-939.8305345,0.00017816,2]
[405303685,1770971448386,-1003.56652033,0.0001786,2]
[405303686,1770971448396,-500.0,0.00017863,2]
[405303687,1770971448407,-660.71491564,0.000179,2]
[405303688,1770971448416,-482.4484795,0.000179,2]
[405303689,1770971448426,-6540.18977037,0.000179,2]
[405303690,1770971448436,-500.0,0.00017918,2]
[405303691,1770971448449,-72332.52053433,0.00017927,2]
[405303692,1770971448459,-500.0,0.00017972,2]
[405303693,1770971448468,-591.31,0.00017998,2]
[405303694,1770971448478,-1197.3,0.00017998,2]
[405303695,1770971448487,-1410.82,0.00017998,2]
[405303696,1770971448497,-615.27,0.00017998,2]
[405303697,1770971448507,-500.0,0.00017998,2]
[405303698,1770971448516,-300.0,0.00017999,2]
[405303699,1770971448527,-324.53136026,0.00017999,2]
[405303700,1770971448536,-191.54707016,0.00017999,2]
[405303701,1770971448547,-2429.84724611,0.00018,2]
[405303702,1770971448558,-150.0,0.00018,2]
[405303703,1770971448567,-1668.58678493,0.00018,2]
[405303704,1770971448579,-5056635.65874027,0.00018,2]
[405303705,1770971448793,-540.01220046,0.00018,2]
[405303706,1770971448811,-15378.4145365,0.00018,2]
[405303707,1770971448950,-332.6946,0.00011557,2]
[405303708,1770971448962,-3339.8786107,0.00011557,2]
[405303709,1770971448973,-2483.1086404,0.00011557,2]
[405303710,1770971448982,-616.69513236,0.00013698,2]
[405303711,1770971448991,-500.0,0.00013698,2]
[405303712,1770971449000,-501.88768419,0.00013698,2]
[405303713,1770971449010,-5968.0,0.00014494,2]
[405303714,1770971449019,-5968.0,0.00017494,2]
[405303715,1770971449029,-3127.02790498,0.000179,2]
[405303716,1770971449039,-68603.74633151,0.00018,2]
[405303717,1770971449446,-468520.15335298,0.00018,2]
[405303718,1770971449456,-34777.23406205,0.00018,2]
[405303719,1770971449466,-5889026.43941866,0.00018,2]
[405303720,1770971449475,-500.14113214,0.00018,2]
[405303721,1770971449485,-151.0,0.00018,2]
[405303722,1770971449495,-151.0,0.00018,2]
[405303723,1770971449505,-151.0,0.00018,2]
[405303724,1770971449514,-282.843245,0.00018,2]
[405303725,1770971449524,-500.0,0.00018027,2]
[405303726,1770971449535,-500.0,0.00018082,2]
[405303727,1770971449545,-500.0,0.00018137,2]
[405303728,1770971449557,-722.32,0.00018137,2]
[405303729,1770971449567,-1137.19,0.00018137,2]
[405303730,1770971449576,-981.7,0.00018137,2]
[405303731,1770971449587,-500.0,0.00018137,2]
[405303732,1770971449602,-500.0,0.00018137,2]
[405303733,1770971449617,-691.13,0.00018137,2]
[405303734,1770971449627,-191.66731724,0.00018137,2]
[405303735,1770971449637,-529.45,0.00018137,2]
[405303736,1770971449647,-1438.79,0.00018137,2]
[405303737,1770971449657,-500.0,0.00018137,2]
[405303738,1770971449667,-581.0,0.00018137,2]
[405303739,1770971449676,-866.73,0.00018137,2]
[405303740,1770971449686,-500.0,0.00018137,2]
[405303741,1770971449696,-481.89542729,0.00018186,2]
[405303742,1770971449706,-500.0,0.00018192,2]
[405303743,1770971449716,-151.88,0.00018219,2]
[405303744,1770971449726,-500.0,0.00018246,2]
[405303745,1770971449737,-500.0,0.00018301,2]
[405303746,1770971449747,-190.33580861,0.00018342,2]
[405303747,1770971449758,-500.0,0.00018356,2]
[405303748,1770971449768,-1504.4856347,0.00018364,2]
[405303749,1770971449779,-960.3517219,0.00018364,2]
[405303750,1770971449788,-1787.66016397,0.00018364,2]
[405303751,1770971449798,-500.0,0.00018411,2]
[405303752,1770971449809,-151.88,0.00018411,2]
[405303753,1770971449818,-160.10510946,0.0001846,2]
[405303754,1770971449828,-500.0,0.00018466,2]
[405303755,1770971449839,-500.0,0.0001852,2]
[405303756,1770971449848,-500.0,0.00018575,2]
[405303757,1770971449858,-151.88,0.00018603,2]
[405303758,1770971449868,-481.89542729,0.0001863,2]
[405303759,1770971449878,-500.0,0.0001863,2]
[405303760,1770971449887,-150.0,0.0001863,2]
[405303761,1770971449897,-500.0,0.00018685,2]
[405303762,1770971449906,-7156.27,0.00018688,2]
[405303763,1770971449916,-500.0,0.0001874,2]
[405303764,1770971449926,-321.85,0.00018745,2]
[405303765,1770971449936,-500.0,0.00018794,2]
[405303766,1770971449945,-285.29097381,0.00018849,2]
[405303767,1770971449955,-801.45328236,0.00018904,2]
[405303768,1770971449964,-503.0,0.00019,2]
[405303769,1770971449973,-481.89542729,0.00019073,2]
[405303770,1770971449983,-500.0,0.00019178,2]
[405303771,1770971449992,-150.0,0.00019178,2]
[405303772,1770971450001,-250.0,0.00019178,2]
[405303773,1770971450011,-150.0,0.00019178,2]
[405303774,1770971450020,-500.0,0.00019233,2]
[405303775,1770971450030,-500.33745855,0.00019288,2]
[405303776,1770971450039,-481.89542729,0.00019517,2]
[405303777,1770971450048,-500.0,0.00019726,2]
[405303778,1770971450058,-250.0,0.00019726,2]
[405303779,1770971450068,-350.0,0.00019726,2]
[405303780,1770971450078,-250.0,0.00019726,2]
[405303781,1770971450087,-500.0,0.00019781,2]
[405303782,1770971450097,-500.0,0.00019836,2]
[405303783,1770971450107,-500.0,0.0001989,2]
[405303784,1770971450116,-4933.790515,0.000199,3]
[405303785,1770971450126,-632.80663538,0.00019945,2]
[405303786,1770971450135,-758.98794208,0.0001995,15]
[405303787,1770971450145,-152.97,0.0002,7]
[405303788,1770971450155,-210.64,0.00020164,2]
[405303789,1770971450164,-335.56301619,0.00020274,2]
[405303790,1770971450174,-450.0,0.00020274,2]
[405303791,1770971450184,-350.0,0.00020274,2]
[405303792,1770971450194,-1274.0,0.00020494,2]
[405303793,1770971450203,-150.0,0.00020494,2]
[405303794,1770971450212,-1208.0,0.00020494,2]
[405303795,1770971450223,-918.0,0.00020494,2]
[405303796,1770971450233,-1337.0,0.00020494,2]
[405303797,1770971450242,-160.10510946,0.00020511,2]
[405303798,1770971450251,-21574.56,0.00020548,2]
[405303799,1770971450260,-550.0,0.00020822,2]
[405303800,1770971450271,-450.0,0.00020822,2]
[405303801,1770971450280,-13825.82067085,0.00021,2]
[405303802,1770971450294,-503.0,0.00021346,4]
[405303803,1770971450304,-203.02698614,0.0002137,2]
[405303804,1770971450314,-550.0,0.0002137,2]